Cogmind - Beta 13 @@@ ROGUE MODE // 2024.04.04 @ 22:46:48 Player: Watcher Result: Destroyed by G-47 Trooper with Particle Gun Performance ------------- Evolutions (2) 1000 Regions Visited (4) 800 Robots Destroyed (48) 240 Value Destroyed (1490) 1490 Prototype IDs (2) 40 Alien Tech Used (0) 0 Bonus (0) 0 TOTAL SCORE: 3570 Bonus ------- None Cogmind --------- Core Integrity 0/550 Matter 300/300 Energy 140/140 System Corruption 0% Temperature Cool (9) Movement Core (700) Ox13 Location -8/Materials Parts ------- > --- POWER (1) -------- Light Deuterium Engine > --- PROPULSION (2) --- (None) > --- UTILITY (4) ------ Large Storage Unit Core Shielding Core Shielding Weapon Shielding > --- WEAPON (4) ------- Heavy Flail Heavy Flail Heavy Flail Heavy Flail > --- INVENTORY (15) --- Light Ion Engine Improved Ion Engine Light Deuterium Engine Small Storage Unit Core Shielding Particle Gun Particle Gun Heavy Assault Rifle Hammer Heavy Flail Peak State ------------ > --- POWER ------------ Light Deuterium Engine > --- PROPULSION ------- Improved Hover Unit Improved Hover Unit > --- UTILITY ---------- Large Storage Unit Core Shielding Core Shielding Core Shielding > --- WEAPON ----------- Heavy Flail Heavy Flail Heavy Flail Heavy Flail > --- INVENTORY -------- Light Ion Engine Improved Ion Engine Small Storage Unit Particle Gun Particle Gun Heavy Assault Rifle Hammer Heavy Flail [Rating: 24] Favorites ----------- Power Ion Engine Engine Ion Engine Propulsion Improved Aluminum Leg Leg Improved Aluminum Leg Hover Unit Improved Hover Unit Utility Small Storage Unit Device Heat Sink Storage Small Storage Unit Processor Targeting Computer Protection Improved Light Armor Plating Weapon Light Assault Rifle Energy Gun Improved Medium Laser Energy Cannon Advanced Beam Cannon Ballistic Gun Light Assault Rifle Launcher Rocket Launcher Impact Weapon Heavy Flail Build | -11 -10 -9 -9 -8 ------- Run | Yrd Mat Mat Min Mat Slots Evolved 4 | . . 2 . 2 Power . | . . . . . Propulsion . | . . . . . Utility 2 | . . 1 . 1 Weapon 2 | . . 1 . 1 Parts Attached 72 | 6 16 20 2 28 Power 9 | 1 3 2 1 2 Engine 9 | 1 3 2 1 2 Core . | . . . . . Reactor . | . . . . . Propulsion 18 | 2 8 5 . 3 Treads . | . . . . . Leg 16 | 2 8 5 . 1 Wheel . | . . . . . Hover 2 | . . . . 2 Flight . | . . . . . Utility 13 | 1 1 4 . 7 Device 2 | . . 1 . 1 Storage 3 | 1 . 1 . 1 Processor 2 | . 1 . . 1 Hackware . | . . . . . Protection 6 | . . 2 . 4 Artifact . | . . . . . Weapon 32 | 2 4 9 1 16 Energy Gun 5 | . . 1 . 4 Energy Cannon 1 | . . 1 . . Ballistic Gun 14 | 2 4 4 . 4 Ballistic Cannon . | . . . . . Launcher 4 | . . 1 1 2 Special Weapon . | . . . . . Impact Weapon 8 | . . 2 . 6 Slashing Weapon . | . . . . . Piercing Weapon . | . . . . . Special Melee Weapon . | . . . . . Unidentified Prototypes 2 | . . 2 . . Parts Lost 33 | . . 13 1 19 Power 3 | . . 1 1 1 Propulsion 9 | . . 5 . 4 Utility 6 | . . 2 . 4 Weapon 15 | . . 5 . 10 Highest Loss Streak 16 | . . 6 1 16 To Critical Strikes 1 | . . . . 1 Average Slot Usage (%) 86 | . 95 89 87 75 Engine 9 | . 13 8 10 7 Leg 13 | . 26 16 11 4 Hover 1 | . . . . 4 Device 2 | . . 8 . . Storage 16 | . 14 16 22 13 Processor 3 | . 12 . . 3 Protection 7 | . . 7 11 12 Energy Gun 3 | . . 8 . 5 Ballistic Gun 14 | . 27 9 20 4 Launcher 1 | . . . 1 3 Impact Weapon 9 | . . 10 11 16 Naked Turns . | . . . . . Heaviest Build 43 | 13 13 27 26 43 Greatest Support 26 | 20 26 26 13 14 Greatest Overweight (x) 13 | 4 4 6 1 13 Average Overweight (x) 1 | 1 . . 1 3 Largest Inventory Capacity 15 | 8 8 8 8 15 Average Capacity 9 | 7 8 8 8 14 Most Carried 12 | 8 8 8 5 12 Average Carried 7 | 5 7 7 4 8 Final Capacity 15 | 8 8 8 8 15 Final Carried 10 | 6 8 5 5 10 Class Distribution -------------------- 86% | Mutant 11% | Gunner Dominant Class ---------------- Mutant | -10/Materials Mutant | -9/Materials Mutant | -9/Mines Mutant | -8/Materials Resources | -11 -10 -9 -9 -8 ----------- Run | Yrd Mat Mat Min Mat Matter Collected 1001 | 235 215 186 60 305 Remotely . | . . . . . Salvage Created 1625 | . 224 571 129 701 Parts 93 | . 15 41 5 32 Haulers Intercepted . | . . . . . Recyclers Shooed 3 | . . . . 3 Parts Field Recycled . | . . . . . Retrieved Matter . | . . . . . Parts Self-Destructed . | . . . . . Prevented . | . . . . . Kills | -11 -10 -9 -9 -8 ------- Run | Yrd Mat Mat Min Mat Combat Hostiles Destroyed 40 | . 6 15 5 14 Melee 9 | . . 6 . 3 Guns 12 | . 6 5 . 1 AOE 12 | . . 1 3 8 Classes Destroyed 10 | . 2 5 1 2 Worker 1 | . . 1 . . Builder 2 | . . 1 . 1 Tunneler 1 | . . . 1 . Recycler 2 | . . . . 2 Watcher 2 | . . 1 . 1 Swarmer 9 | . 2 4 3 . Grunt 21 | . 4 7 2 8 Duelist 1 | . . 1 . . Sentry 8 | . . 3 . 5 Hunter 1 | . . . . 1 Best Kill Streak 10 | . 2 6 4 10 Combat Bots Only 8 | . 2 5 3 8 Max Kills in Single Turn 4 | . 1 1 2 4 Gunslinging . | . . . . . Exploded 4 | . . 1 1 4 Melee 1 | . . 1 . 1 Uniques/NPCs Destroyed . | . . . . . Combat | -11 -10 -9 -9 -8 -------- Run | Yrd Mat Mat Min Mat Hostile Shots Fired 386 | . 18 181 28 159 Missed 97 | . 4 43 7 43 Damage Taken 3820 | . 137 1670 268 1745 Core 930 | . 11 308 55 556 Absorbed by Shields 83 | . . . . 83 Redirected to Shielding 47 | . . . . 47 Core Remaining (%) 68 | 100 95 . 9 . Volleys Fired 68 | . 20 29 4 15 Largest 3 | . 2 3 2 3 Hottest 124 | . 40 124 56 93 Shots Fired 112 | . 40 46 8 18 Gun 93 | . 40 37 4 12 Cannon 8 | . . 8 . . Launcher 11 | . . 1 4 6 Special . | . . . . . Kinetic 70 | . 40 18 4 8 Thermal 29 | . . 27 . 2 Explosive 11 | . . 1 4 6 Electromagnetic 2 | . . . . 2 Robot Hit Streak 17 | . 5 17 1 5 Robot Miss Streak 2 | . 2 2 1 2 Penetration Max . | . . . . . Secondary Targets 3 | . 2 1 . . Max Gunslinging Chain 1 | . 1 1 . . Shots Hit Robots 124 | . 25 56 8 35 Core Hits 73 | . 13 24 4 32 Critical Kills . | . . . . . Critical Parts Destroyed 7 | . . 2 1 4 Critical Strikes 7 | . . 2 1 4 Smash 7 | . . 2 1 4 Melee Attacks 74 | . . 39 9 26 Impact 74 | . . 39 9 26 Slashing . | . . . . . Piercing . | . . . . . Sneak Attacks 1 | . . . . 1 Combat Hostiles . | . . . . . Follow-up Attacks 6 | . . . . 6 Damage Inflicted 3944 | . 283 1316 360 1985 Guns 765 | . 250 419 . 96 Cannons 61 | . . 61 . . Explosions 1178 | . . 176 171 831 Melee 1907 | . . 660 189 1058 Ramming 33 | . 33 . . . Kinetic 448 | . 250 145 . 53 Thermal 347 | . . 335 . 12 Explosive 1178 | . . 176 171 831 Electromagnetic 31 | . . . . 31 Impact 1907 | . . 660 189 1058 Slashing . | . . . . . Piercing . | . . . . . Highest Corruption . | . . . . . Average Corruption . | . . . . . Corruption Purged . | . . . . . Corruption Blocked . | . . . . . Overload Shots . | . . . . . Overflow Damage 343 | . . 93 23 227 Projectiles . | . . . . . Explosions 4 | . . . . 4 Melee 339 | . . 93 23 223 Knockbacks 14 | . . 8 . 6 Impact 13 | . . 7 . 6 Kinetic . | . . . . . Secondary 1 | . . 1 . . Self-Inflicted Damage 93 | . . . 21 72 Shots 4 | . . . 1 3 Rammed . | . . . . . Targets Rammed 11 | . 11 . . . Kicked 11 | . 11 . . . Crushed . | . . . . . Highest Temperature 214 | . 12 214 . 38 Average Temperature 43 | . 7 57 . 14 Received Heat Transfer 1366 | . 66 540 123 637 Siege Activations . | . . . . . Robots Corrupted 1 | . . . . 1 Combat Hostiles 1 | . . . . 1 Parts Fried 17 | . . 6 3 8 Impact Corruptions 21 | . . 8 3 10 Robots Melted . | . . . . . Combat Hostiles . | . . . . . Parts Melted 1 | . . 1 . . Heat Transferred 728 | . . 703 . 25 Parts Sabotaged . | . . . . . Parts Stolen . | . . . . . Parts Stripped . | . . . . . Power Chain Reactions . | . . . . . Alert | -11 -10 -9 -9 -8 ------- Run | Yrd Mat Mat Min Mat Peak Influence 305 | . 117 305 219 299 Initial 85 | . . 27 42 85 Average 108 | . 45 133 95 158 Maximum Alert Level 1 | . . 1 1 1 Low Security (%) 83 | 100 100 70 89 76 Level 1 16 | . . 29 10 23 Level 2 . | . . . . . Level 3 . | . . . . . Level 4 . | . . . . . Level 5 . | . . . . . High Security . | . . . . . Max Security . | . . . . . Squads Dispatched 5 | . 2 . . 3 Investigation 1 | . 1 . . . Extermination . | . . . . . Reinforcement 2 | . 1 . . 1 Assault . | . . . . . Garrison 2 | . . . . 2 Intercept . | . . . . . Searches Triggered . | . . . . . Construction Impeded 1 | . . . . 1 Haulers Reinforced . | . . . . . Active Scanning Responses . | . . . . . Cargo Convoy Interrupts . | . . . . . Stealth | -11 -10 -9 -9 -8 --------- Run | Yrd Mat Mat Min Mat Distress Signals 3 | . . 3 . . Communications Jammed . | . . . . . Distress Signals . | . . . . . Times Spotted 63 | . 11 26 5 21 Peak Tracking Total 6 | . 4 6 3 6 Tactical Retreats 1 | . . . 1 . Traps | -11 -10 -9 -9 -8 ------- Run | Yrd Mat Mat Min Mat Traps Triggered 5 | . 5 . . . Indirectly . | . . . . . Trap Hack Attempts . | . . . . . Triggered . | . . . . . Disarmed . | . . . . . Reprogrammed . | . . . . . Reused . | . . . . . Traps Extracted . | . . . . . Installed . | . . . . . Triggered . | . . . . . Machines | -11 -10 -9 -9 -8 ---------- Run | Yrd Mat Mat Min Mat Machines Disabled 2 | . . 1 1 . Max in Single Turn 1 | . . 1 1 . Machines Repaired . | . . . . . Machines Dismantled . | . . . . . Machines Sabotaged . | . . . . . Overloaded Fab Kills . | . . . . . Hacking | -11 -10 -9 -9 -8 --------- Run | Yrd Mat Mat Min Mat Machines Accessed 6 | . 3 2 . 1 Terminals 5 | . 2 2 . 1 Fabricators . | . . . . . Repair Stations . | . . . . . Recycling Units 1 | . 1 . . . Scanalyzers . | . . . . . Garrison Access . | . . . . . Total Hacks 11 | . 7 3 . 1 Successful 7 | . 4 2 . 1 Failed 4 | . 3 1 . . Catastrophic . | . . . . . Database Lockouts . | . . . . . Manual . | . . . . . Terminals 8 | . 4 3 . 1 Fabricators . | . . . . . Repair Stations . | . . . . . Recycling Units 3 | . 3 . . . Scanalyzers . | . . . . . Garrison Access . | . . . . . Terminal Hacks 5 | . 2 2 . 1 Record 1 | . 1 . . . Unreport Threat 1 | . . 1 . . Reinforcement Status 1 | . 1 . . . Zone Layout 2 | . . 1 . 1 Fabricator Hacks . | . . . . . Repair Station Hacks . | . . . . . Recycling Unit Hacks 2 | . 2 . . . Report Inventory 1 | . 1 . . . Retrieve Components 1 | . 1 . . . Scanalyzer . | . . . . . Garrison Access Hacks . | . . . . . Unauthorized Hacks . | . . . . . Terminals . | . . . . . Fabricators . | . . . . . Repair Stations . | . . . . . Recycling Units . | . . . . . Scanalyzers . | . . . . . Garrison Access . | . . . . . Data Cores Recovered . | . . . . . Used . | . . . . . Hacking Detections 4 | . 2 1 . 1 Full Trace Events 1 | . 1 . . . Feedback Events . | . . . . . Feedback Blocked . | . . . . . Robot Schematics Acquired . | . . . . . Robots Built . | . . . . . Authchips . | . . . . . Time . | . . . . . Total Robot Build Rating . | . . . . . Part Schematics Acquired . | . . . . . Parts Built . | . . . . . Authchips . | . . . . . Time . | . . . . . Total Part Build Rating . | . . . . . Parts Repaired . | . . . . . Time . | . . . . . Parts Recycled . | . . . . . Recycled Matter . | . . . . . Retrieved Matter . | . . . . . Retrieved Components 3 | . 3 . . . Parts Scanalyzed . | . . . . . Part Schematics Acquired . | . . . . . Parts Damaged . | . . . . . Bothacking | -11 -10 -9 -9 -8 ------------ Run | Yrd Mat Mat Min Mat Used RIF Installer . | . . . . . Robots Hacked . | . . . . . Non-combat . | . . . . . Combat . | . . . . . Robot Hacks Applied . | . . . . . Relay Couplers Released . | . . . . . Fabnet Peak Effective % . | . . . . . Robots Rewired . | . . . . . Allies Hacked . | . . . . . Hacks Repelled . | . . . . . Allies | -11 -10 -9 -9 -8 -------- Run | Yrd Mat Mat Min Mat Total Allies . | . . . . . Largest Group . | . . . . . Highest-Rated Group . | . . . . . Highest-Rated Ally . | . . . . . Total Orders . | . . . . . Ally Attacks . | . . . . . Total Damage . | . . . . . Kills . | . . . . . Allies Corrupted . | . . . . . Allies Melted . | . . . . . Intel | -11 -10 -9 -9 -8 ------- Run | Yrd Mat Mat Min Mat Robot Analysis Total . | . . . . . Derelict Logs Recovered . | . . . . . Drone Launches . | . . . . . Drone Recoveries . | . . . . . Exploration | -11 -10 -9 -9 -8 ------------- Run | Yrd Mat Mat Min Mat Turns Passed 2009 | 72 455 490 392 600 Spaces Moved 840 | 41 289 184 180 146 Core 74 | 26 8 18 . 22 Treads . | . . . . . Legs 715 | 15 281 166 180 73 Wheels . | . . . . . Hover 51 | . . . . 51 Flight . | . . . . . Fastest Speed 50 | 50 100 120 190 176 Average Speed 174 | 134 121 150 190 300 Slowest Speed 700 | 250 250 350 190 700 Overloaded Moves . | . . . . . Propulsion Burnouts . | . . . . . Robots Hopped . | . . . . . Cave-ins Triggered . | . . . . . Exploration Rate (%) 26 | 4 45 24 42 19 Regions Visited 4 Branch Regions 1 Pre-discovered Areas . | . . . . . Known Exits Taken . | . . . . . Unknown Exits Taken 4 | 1 1 1 1 . Scrap Searched 1 | . . . 1 . Spaces Dug 9 | . . . 9 . Terrain Destroyed 67 | . . 3 36 28 Melee . | . . . . . Projectile . | . . . . . AOE 67 | . . 3 36 28 Terrain Rammed . | . . . . . Walls Destroyed . | . . . . . Machines Disabled . | . . . . . Actions | -11 -10 -9 -9 -8 --------- Run | Yrd Mat Mat Min Mat Total 1159 | 58 356 285 206 254 Wait 34 | . 1 1 11 21 Move 836 | 40 288 183 179 146 Hop . | . . . . . Pick Up 60 | 12 10 12 1 25 Fast Attach 9 | . 8 1 . . Attach 43 | 6 3 13 1 20 Detach . | . . . . . Swap 20 | . 5 6 1 8 Drop 11 | . 10 1 . . Fire 68 | . 20 29 4 15 Melee 67 | . . 39 9 19 Ram . | . . . . . Kick 11 | . 11 . . . Crush . | . . . . . Escape Stasis . | . . . . . Rewire . | . . . . . Trap . | . . . . . Miscellaneous . | . . . . . Route ------- -11/Scrapyard -10/Materials -9/Materials -9/Mines -8/Materials History --------- Turn | Location | Event 11 | -11/Scrapyard | Discovered new exit (range 16) 73 | -11/Scrapyard | Entered Materials 313 | -10/Materials | Build established: Mutant 519 | -10/Materials | Discovered new exit (range 5) 528 | -10/Materials | Entered another Materials area 528 | -9/Materials | Evolved 2 slots: Utility x1, Weapon x1 845 | -9/Materials | Lost 3 parts (2n1w) 914 | -9/Materials | Core integrity fell below 50% 968 | -9/Materials | Discovered new exit (range 12) 977 | -9/Materials | Lost 6 parts (1p2n1u2w) 1018 | -9/Materials | Entered Mines 1056 | -9/Mines | Core integrity fell below 20% 1255 | -9/Mines | Received a Rocket Launcher from a helpful Derelict 1378 | -9/Mines | Discovered new exit (range 10) 1410 | -9/Mines | Entered Materials 1410 | -8/Materials | Evolved 2 slots: Utility x1, Weapon x1 1663 | -8/Materials | Garrison activated, responded to threat 1686 | -8/Materials | Core integrity fell below 50% 1711 | -8/Materials | Destroyed 8 combat bots 1729 | -8/Materials | Core integrity fell below 20% 1756 | -8/Materials | Lost 16 parts (1p2n4u9w) 1928 | -8/Materials | Garrison activated, responded to threat 2010 | -8/Materials | Destroyed by G-47 Trooper with Particle Gun Last Messages --------------- 01950_ K-01 Serf collects debris. 01957_ K-01 Serf cleans the Hadron Collector. 01959_ Hadron Collector disabled. 01960_ K-01 Serf collects debris. 01969_ G-47 Trooper knocked back. 01980_ Destroyed Imp. Heat Sink. 01980_ G-47 Trooper system corrupted by crushing effect. 01980_ Hvy. Flail follow-up attack on G-47 Trooper. 01980_ Destroyed Particle Gun. 01980_ G-47 Trooper system corrupted by crushing effect. 01980_ Hvy. Flail follow-up attack on G-47 Trooper. 01980_ Aluminum Leg fried. 01980_ G-47 Trooper destroyed. 01983_ Acquired 28 matter. 01990_ Acquired 16 matter. 01996_ Imp. Hover Unit destroyed. Map ----- +----------------------------------------------------+ | ?????????????????????????????????????????????????? | | ?????????????????????????????????????????????????? | | ?????????????????????????????????????????????????? | | ?????????????????????????????????????????????????? | | ?????????????????????????????????????????????????? | | ?????????????????????????????????????????????????? | | ?????????????????????????????????????????????????? | | ?????????????????????????????????????????????????? | | ?????????????????????????????????????????????????? | | ?????????????????????????????????????????????????? | | ?????????????????????????????????????????????????? | | ?????????????????????????????????????????????????? | | ???????????????????#?????????????????????????????? | | ??????????????????? ?????????????????????????????? | | ???????????????#### ?????????????????????????????? | | ???????????????# ?????##???????????????????????? | | ???????????????? ????? ???????????????????????? | | ???????????????? ! ?????# #??????????????????????? | | ????????????????# #?????#k#??????????????????????? | | ????????????????# ####### #??????????????????????? | | ?????????########/## # #??????????????????????? | | ?????????# # # #######????????????????? | | ?????????# """ + # +????????????????? | | ?????????# """ # # #????????????????? | | ?????????# """ ! # # #####+####???????? | | ?????????# !== # #@ ?????? | | ?????# / # g ?????? | | ?????# # ! #= # % ?????? | | ?????# ?# [% % # ###+#########+#####??????? | | ????## ?## #####+####### #??# ????????? | | ?+### ?###!= [ % #?#""" #??# ????????? | | ### % ##?#""" #??# ????????? | | +% [=%[ ##?#"" #??# ????????? | | ## ![ " " ##?#""" #??# ????????? | | ##### ?# = *"G" ##?# #??# ????????? | | ????#??+??## [% " ###########??#######????????? | | ?????? # = ##[ #?????????????????? | | ????? ####"###### """ #?????????????????? | | ???# #?# ##### """ #?????????????????? | | ???# ###*% + """ = #?????????????????? | | ???# + ##### #?????????????????? | | ???# ### #???# #?????????????????? | | ???# ? #?# #???# "T" #?????????????????? | | ???# #?# #???# """ #?????????????????? | | ???# ? ### # ??# #?????????????????? | | ???###????#### ######+####?????????????????? | | ?????????????# #############???????? | | ?????????????# % + #???????? | | ?????????????# ###### #???????? | | ?????????????# / ##### #????# #???????? | +----------------------------------------------------+ Best States ------------- Heat Dissipation 38 Energy Generation 14 Energy Capacity 500 Matter Stores 300 Matter Capacity 300 Sight Range 16 Terrain Scan Density 10 Armor Coverage 225 Core Shielding 20 Weapon Shielding 33 Evasion (%) 55 Targeting Accuracy 5 Item Schematics ----------------- None Robot Schematics ------------------ None Fabricated ------------ Nothing Alien Tech Used ----------------- None Achievements -------------- Close Call Challenges ------------ None Game ------ Seed RagnarokStasisCalibrator Manual? 0 Play Time 00:24:37 Cumulative 6.4 hours Start 2024.04.04 @ 22:24:40 End 2024.04.04 @ 22:46:48 Sessions 1 Manual Loads 0 Difficulty Rogue Special Mode None Game No. 7 Rogue 7 Adventurer 0 Explorer 0 Win Type - Total 0 Types 0/0/0/0/0/0/0/0/0 Lore% 8 Gallery% 13 Achievement% 13 Wizard Run 0 Options --------- Layout 1 ASCII 0 Keyboard 0 Movement Mouse Keybinds 0 Fullscreen 1 Font 24/Smallcaps Map View 50x35 Zoom Use 0% Tactical HUD 1 Map Filters NONE Filters NONE Steam 1 RUN: aa2b8beb-2683-4827-991d-af2303fe8383